bitfinex-derivatives/quotes_ETHF0:USTF0_20250217
["timestamp","ask_amount","ask_price","bid_price","bid_amount"]
[1739805863134,3.2078,2817.1,2816.6,3.2078]
[1739805863337,0.70988,2817.0,2816.9,0.70988]
[1739805863537,3.91766,2817.1,2816.6,4.98273]
[1739805863840,0.70989,2817.0,2816.9,0.70989]
[1739805864142,3.2078,2817.1,2816.6,4.98273]
[1739805864345,0.70991,2816.9,2816.8,0.70989]
[1739805865035,3.2078,2817.1,2816.6,4.98273]
[1739805865235,0.70989,2817.0,2816.9,0.70987]
[1739805865844,0.70991,2816.9,2816.8,0.70991]
[1739805866037,3.2078,2817.1,2816.6,4.98273]
[1739805866237,3.2078,2817.1,2816.7,1.77486]
[1739805866438,0.70988,2817.0,2816.9,0.70988]
[1739805866838,3.2078,2817.1,2816.6,3.2078]
[1739805867041,7.94532226,2817.5,2817.2,0.70981]
[1739805867239,4.15252226,2817.5,2817.0,1.77468]
[1739805867543,0.70978,2817.4,2817.3,0.70979]
[1739805867939,0.70983,2817.2,2817.1,0.70984]
[1739805868242,0.70983,2817.2,2817.1,0.70985]
[1739805868433,9.19349089,2817.5,2817.0,0.9892]
[1739805868637,1.0085,2817.4,2817.0,0.9892]
[1739805868840,0.70979,2817.4,2817.3,0.7098]
[1739805869041,0.70978,2817.4,2817.3,0.70979]
[1739805869241,0.94472226,2817.5,2817.1,2.915]
[1739805869443,0.00532226,2817.5,2817.4,0.70977]
[1739805869946,0.7098,2817.3,2817.2,0.9295]
[1739805870342,0.7098,2817.3,2817.0,0.9892]
[1739805870343,0.70985,2817.1,2817.0,0.9892]
[1739805871646,0.70985,2817.1,2817.0,1.69907]
[1739805872141,0.70985,2817.1,2817.0,0.9892]
[1739805872343,0.70992,2816.8,2816.7,3.8015]
[1739805872543,0.70992,2816.8,2816.7,0.9295]
[1739805872749,0.70995,2816.7,2816.6,4.1376]
[1739805872944,0.70995,2816.7,2816.6,3.2078]
[1739805873141,3.26657863,2816.7,2816.3,0.9225]
[1739805873343,3.26657863,2816.7,2816.4,0.71001]
[1739805873545,0.70997,2816.6,2816.4,0.71001]
[1739805873945,0.70997,2816.6,2816.3,0.9225]
[1739805873946,3.26657863,2816.7,2816.3,0.9225]
[1739805874252,3.97653863,2816.7,2816.4,0.71]
[1739805874450,3.26657863,2816.7,2816.3,0.9225]
[1739805874746,0.9652,2816.8,2816.3,0.9225]
[1739805874948,0.70998,2816.6,2816.4,0.71]
[1739805875338,0.70998,2816.6,2816.4,0.71001]
[1739805875941,0.70997,2816.6,2816.4,0.71001]
[1739805876144,0.3552,2817.4,2816.5,2.871]
[1739805876344,2.2389,2817.4,2816.5,7.0332]
[1739805876545,3.21312226,2817.5,2817.3,0.7098]
[1739805877250,3.21312226,2817.5,2817.1,2.871]
[1739805877551,19.68,2818.6,2817.3,3.26657863]
[1739805877552,3.2078,2818.4,2817.3,3.26657863]
[1739805877747,3.2078,2818.7,2817.9,6.47437863]
[1739805877948,0.9653,2818.8,2818.5,0.70947]
[1739805878139,0.9653,2818.8,2818.5,3.2078]
[1739805878345,0.9653,2818.8,2818.4,0.70952]
[1739805878546,3.26657863,2819.0,2818.5,2.87]
[1739805878846,0.00532226,2818.9,2818.7,0.70944]
[1739805879049,0.00532226,2818.9,2818.6,1.0085]
[1739805879248,0.00532226,2818.9,2818.7,0.70942]
[1739805879445,0.00532226,2818.9,2818.7,3.91724]
[1739805879646,0.00532226,2818.9,2818.8,0.70942]
[1739805880044,0.00532226,2818.9,2818.7,3.2078]
[1739805880244,0.00532226,2818.9,2818.8,0.70942]
[1739805882140,0.00532226,2818.9,2818.7,3.91723]
[1739805882349,0.00532226,2818.9,2818.8,0.70942]
[1739805883340,0.00532226,2818.9,2818.7,3.2078]
[1739805883853,0.00532226,2818.9,2818.6,1.71795]
[1739805884051,0.00532226,2818.9,2818.6,1.0085]
[1739805884258,0.00532226,2818.9,2818.3,2.92032226]
[1739805884259,3.26657863,2818.7,2818.3,2.87332226]
[1739805884453,0.00532226,2818.9,2818.3,6.08112226]
[1739805884752,0.00532226,2818.9,2818.4,1.0048]
[1739805885260,0.00532226,2818.9,2818.6,0.70946]
[1739805885550,0.00532226,2818.9,2818.7,0.70943]
[1739805885948,0.71473226,2818.9,2818.6,0.70946]
[1739805886153,0.70943,2818.8,2818.4,1.0048]
[1739805886452,6.47437863,2818.7,2818.3,0.00532226]
[1739805886656,3.97609863,2818.4,2818.3,0.00532226]
[1739805886958,7.18389863,2818.4,2818.3,0.00532226]
[1739805888059,4.7583,2818.6,2818.3,0.00532226]
[1739805888250,0.9566,2818.6,2818.3,0.00532226]
[1739805888452,0.9566,2818.6,2818.5,0.70949]
[1739805888654,3.2078,2818.7,2818.3,0.00532226]
[1739805888854,0.00532226,2818.9,2818.3,0.00532226]
[1739805889050,0.70945,2818.7,2818.4,0.70951]
[1739805889256,3.26657863,2818.8,2818.3,0.00532226]
[1739805889769,3.26657863,2818.8,2818.5,0.70947]
[1739805890065,0.70945,2818.7,2818.3,0.00532226]
[1739805890265,0.00532226,2818.9,2818.3,3.21312226]
[1739805890460,0.70943,2818.8,2818.5,0.70947]
[1739805890867,0.00532226,2818.9,2818.3,3.21312226]
[1739805891068,0.00532226,2818.9,2818.3,0.00532226]
[1739805891264,0.70952,2818.4,2818.3,0.00532226]
[1739805891471,3.26657863,2818.7,2818.3,0.00532226]
[1739805891472,3.2078,2818.6,2818.3,0.00532226]
[1739805891671,0.7095,2818.5,2818.3,0.00532226]
[1739805891967,3.2078,2818.6,2818.5,0.70949]
[1739805892165,0.00532226,2818.9,2818.8,0.70942]
[1739805893370,0.71471226,2818.9,2818.7,0.70942]
[1739805893569,0.71471226,2818.9,2818.8,0.70942]
[1739805893570,0.00532226,2818.9,2818.8,0.70942]
[1739805894571,3.27190089,2818.9,2818.4,1.9942]
[1739805894771,0.70943,2818.8,2818.6,0.70946]
[1739805894972,3.27190089,2818.9,2818.6,0.70946]
[1739805895170,3.98131089,2818.9,2818.6,0.70946]
[1739805895372,0.70944,2818.8,2818.4,1.9942]
[1739805895566,0.70943,2818.8,2818.5,0.70947]
[1739805895773,0.70942,2818.8,2818.6,0.70947]
[1739805896380,3.27190089,2818.9,2818.4,1.9942]
[1739805896579,0.70943,2818.8,2818.6,0.70946]
[1739805896976,3.27190089,2818.9,2818.7,0.70944]
[1739805897180,3.98131089,2818.9,2818.7,0.70944]
[1739805897382,3.27190089,2818.9,2818.7,0.70944]
[1739805897576,3.98131089,2818.9,2818.7,0.70944]
[1739805898078,0.00532226,2818.9,2818.8,0.70942]
[1739805898873,0.00532226,2818.9,2818.7,2.915]
[1739805899266,0.00532226,2818.9,2818.8,0.70942]
[1739805900081,0.71471226,2818.9,2818.8,0.70942]
[1739805900273,0.71471226,2818.9,2818.7,3.62443]
[1739805900475,0.70942,2818.8,2818.7,2.915]
[1739805900776,3.91722,2818.8,2818.7,2.915]
[1739805900978,4.89922,2818.8,2818.7,2.915]
[1739805901881,10.89922,2818.8,2818.7,2.915]
[1739805902078,0.70952,2818.4,2818.3,0.00532226]
[1739805902278,7.18389863,2818.4,2818.3,0.00532226]
[1739805904479,1.014,2818.6,2818.3,0.00532226]
[1739805904685,0.70951,2818.5,2818.3,0.00532226]
[1739805904872,1.014,2818.6,2818.3,0.00532226]
[1739805905078,1.014,2818.6,2818.4,0.7095]
[1739805905484,3.2078,2818.7,2818.3,0.00532226]
[1739805905680,0.71474226,2818.9,2818.7,0.70944]
[1739805905879,0.00532226,2818.9,2818.7,0.70944]
[1739805906180,0.00532226,2818.9,2818.8,0.70942]
[1739805907179,3.91708,2819.4,2818.7,0.9912]
[1739805907180,3.2078,2819.4,2818.7,0.9912]
[1739805907375,3.2078,2819.4,2819.3,0.70929]
[1739805907780,1.372,2820.0,2819.2,3.2078]
[1739805907981,1.0168,2820.0,2819.7,0.70917]
[1739805908183,1.72593,2820.0,2819.6,0.7092]
[1739805908488,0.70915,2819.9,2819.5,3.2078]
[1739805908683,1.0168,2820.0,2819.5,3.2078]
[1739805908880,3.21312226,2820.1,2819.5,3.2078]
[1739805909080,3.21312226,2820.1,2819.8,0.70915]
[1739805909384,3.21312226,2820.1,2819.6,0.9838]
[1739805909784,3.21312226,2820.1,2819.8,0.70917]
[1739805910183,3.21312226,2820.1,2819.7,0.70919]
[1739805910384,3.21312226,2820.1,2819.8,0.70916]
[1739805910693,3.21312226,2820.1,2819.8,0.70915]
[1739805910987,0.00532226,2820.1,2819.8,3.2078]
[1739805911187,0.00532226,2820.1,2819.9,0.70912]
[1739805911483,0.00532226,2820.1,2820.0,0.70912]
[1739805921091,0.00532226,2820.1,2819.8,6.1228]
[1739805921286,0.00532226,2820.1,2820.0,0.70912]
[1739805923191,3.563,2820.8,2820.0,2.856]
[1739805923487,1.0122,2821.0,2820.7,3.2078]
[1739805923693,1.72106,2821.0,2820.9,0.70889]
[1739805923887,1.0122,2821.0,2820.9,0.70889]
[1739805924592,3.91665,2821.1,2820.9,0.70889]
[1739805924787,0.3552,2821.4,2820.7,3.2078]
[1739805924788,4.2115,2821.4,2820.7,3.2078]
[1739805925183,4.2115,2821.4,2820.6,0.9649]
[1739805925382,4.2115,2821.4,2820.7,0.70892]
[1739805925383,0.7089,2820.9,2820.7,0.70892]
[1739805925589,4.09315126,2821.2,2820.6,0.9649]
[1739805925795,4.09315126,2821.2,2820.2,2.855]
[1739805925796,0.70898,2820.6,2820.2,2.855]
[1739805925993,0.70898,2820.6,2820.2,3.7906]
[1739805926295,0.70896,2820.7,2820.4,0.70901]
[1739805926493,0.70898,2820.6,2820.3,0.70903]
[1739805926692,0.70898,2820.6,2820.2,4.7987]
[1739805926998,1.77217,2821.0,2820.3,0.70903]
[1739805927193,0.70898,2820.6,2820.4,0.70901]
[1739805927395,0.70901,2820.5,2820.3,0.70904]
[1739805927692,0.70901,2820.4,2820.2,2.65275]
[1739805927994,0.70901,2820.4,2820.3,0.70903]
[1739805928191,3.2078,2820.7,2820.3,0.70903]
[1739805928392,0.70901,2820.5,2820.4,0.70901]
[1739805928790,1.63592,2820.8,2820.6,0.70895]
[1739805928994,0.927,2820.8,2820.6,0.70896]
[1739805929294,0.70894,2820.7,2820.6,0.70896]
[1739805929500,0.70894,2820.7,2820.5,0.70898]
[1739805930090,0.927,2820.8,2820.4,3.2078]
[1739805930289,1.63592,2820.8,2820.6,0.70894]
[1739805930485,0.927,2820.8,2820.4,3.2078]
[1739805930792,4.2701252,2821.2,2820.4,3.2078]
[1739805930997,0.70893,2820.8,2820.6,0.70895]
[1739805931197,0.7089,2820.9,2820.7,0.70894]
[1739805931692,4.2701252,2821.2,2820.7,0.70894]
[1739805931899,4.2701252,2821.2,2820.4,3.2078]
[1739805932092,3.2078,2820.9,2820.4,3.2078]
[1739805932294,0.70898,2820.6,2820.4,3.91681]
[1739805932494,0.70902,2820.4,2820.3,0.70903]
[1739805932796,6.4707252,2820.9,2820.2,4.7967]
[1739805933003,6.4707252,2820.9,2820.5,0.70899]
[1739805933004,0.70896,2820.7,2820.5,0.70899]
[1739805933194,0.70893,2820.8,2820.5,0.70897]
[1739805933502,0.70901,2820.5,2820.3,0.70904]
[1739805933800,6.4707252,2820.9,2820.4,0.70901]
[1739805933801,8.2429752,2820.9,2820.4,0.70901]
[1739805933997,0.70899,2820.5,2820.4,0.70901]
[1739805934202,0.70904,2820.3,2820.2,4.7967]
[1739805934598,0.70904,2820.3,2820.2,3.8611]
[1739805935290,0.70903,2820.4,2820.2,3.8611]
[1739805935498,0.70903,2820.4,2820.2,4.57015]
[1739805935702,0.70903,2820.4,2820.3,0.70904]
[1739805935999,4.9511952,2820.6,2820.4,0.709]
[1739805936197,0.9793,2820.6,2820.5,0.70899]
[1739805936396,2.12732,2821.1,2820.3,1.77259]
[1739805936598,0.70896,2820.7,2820.6,0.70895]
[1739805936791,0.70894,2820.7,2820.6,0.70895]
[1739805937199,3.04252,2821.1,2820.3,1.77259]
[1739805937401,0.70892,2820.9,2820.8,0.70891]
[1739805937902,0.70896,2820.7,2820.6,0.70894]
[1739805938606,3.2078,2820.9,2820.4,1.62721]
[1739805938607,8.2429852,2820.9,2820.4,1.62721]
[1739805938903,0.70896,2820.7,2820.6,0.70896]
[1739805939098,6.4707252,2820.9,2820.4,0.9182]
[1739805939492,3.2078,2820.9,2820.8,0.70891]
[1739805940107,3.2078,2820.9,2820.6,1.77241]
[1739805940108,0.9152,2821.1,2820.6,1.77241]
[1739805940404,0.9152,2821.1,2821.0,0.70886]
[1739805940999,3.2078,2821.3,2821.1,0.70882]
[1739805941304,3.2078,2821.3,2820.7,2.851]
[1739805941601,6.4707252,2821.3,2820.7,2.851]
[1739805941802,0.70884,2821.1,2820.7,2.851]
[1739805942001,3.2078,2821.3,2820.7,2.851]
[1739805942201,3.2078,2821.3,2820.9,0.70887]
[1739805942413,0.70886,2821.1,2820.9,0.70888]
[1739805942603,3.2629252,2821.1,2820.5,3.2078]
[1739805942904,1.65717,2821.0,2820.5,3.2078]
[1739805943107,3.2078,2821.3,2820.4,3.7682]
[1739805943108,3.2078,2821.3,2820.8,3.2078]
[1739805943302,3.2629252,2821.2,2820.9,0.9223]
[1739805943500,0.70895,2820.7,2820.5,3.2078]
[1739805943702,3.2078,2821.0,2820.5,3.2078]
[1739805943905,4.1967252,2821.2,2820.5,3.2078]
[1739805944105,0.7089,2820.9,2820.6,0.70896]
[1739805944301,3.2078,2821.0,2820.5,3.2078]
[1739805944705,0.9483,2820.9,2820.5,3.91679]
[1739805944909,0.9483,2820.9,2820.5,3.2078]
[1739805945111,0.70894,2820.7,2820.5,3.91678]
[1739805945306,0.70892,2820.8,2820.6,0.70895]
[1739805945509,0.70894,2820.7,2820.6,0.70895]
[1739805945816,0.70894,2820.7,2820.5,3.2078]
[1739805945817,0.70895,2820.7,2820.5,0.70899]
[1739805946109,4.2112252,2820.9,2820.3,0.9623]
[1739805946416,4.9201352,2820.9,2820.8,0.70891]
[1739805946715,0.70892,2820.8,2820.7,0.70893]
[1739805946920,0.9483,2820.9,2820.4,3.2078]
[1739805947212,0.9483,2820.9,2820.6,0.70895]
[1739805947611,0.70894,2820.8,2820.6,0.70895]
[1739805948110,0.70894,2820.8,2820.4,3.2078]
[1739805948309,0.9483,2820.9,2820.4,3.2078]
[1739805948514,0.9483,2820.9,2820.8,0.70891]
[1739805948910,3.91667,2821.0,2820.9,0.70889]
[1739805949116,3.2629252,2821.2,2820.9,0.70889]
[1739805949117,0.70886,2821.1,2820.9,0.70889]
[1739805949415,0.70888,2821.0,2820.5,1.77248]
[1739805949616,0.70887,2821.0,2820.5,1.77248]
[1739805949822,3.9717352,2821.2,2821.1,0.70884]
[1739805950020,3.2629252,2821.2,2820.7,3.2078]
[1739805950218,3.2629252,2821.2,2821.0,0.70886]
[1739805950219,0.70886,2821.1,2821.0,0.70886]
[1739805950915,3.9717552,2821.2,2821.1,0.70884]
[1739805951218,3.2629252,2821.2,2821.1,0.70884]
[1739805951412,0.70885,2821.1,2821.0,0.70885]
[1739805951618,0.70885,2821.1,2820.9,0.70887]
[1739805951812,0.70885,2821.1,2821.0,0.70886]
[1739805952309,0.70885,2821.1,2821.0,0.70885]
[1739805952516,0.70885,2821.1,2820.8,1.8835]
[1739805952715,0.70885,2821.1,2821.0,0.70886]
[1739805954119,7.4285252,2821.3,2820.8,1.8835]
[1739805954318,0.70883,2821.2,2821.1,0.70883]
[1739805954715,7.7837252,2821.3,2820.8,1.8835]
[1739805955021,0.70887,2821.0,2820.9,0.70889]
[1739805955823,0.70887,2821.0,2820.8,1.8835]
[1739805956024,0.70887,2821.0,2820.9,0.70889]
[1739805956919,0.70886,2821.1,2821.0,0.70885]
[1739805957717,0.70888,2821.0,2820.9,0.70887]
[1739805958424,0.70886,2821.1,2821.0,0.70885]
[1739805959325,0.70888,2821.0,2820.9,0.70887]
[1739805959524,0.70888,2821.0,2820.8,2.59239]
[1739805959720,0.70888,2821.0,2820.9,0.70888]
[1739805959926,0.70889,2820.9,2820.8,0.9255]
[1739805960326,0.70889,2820.9,2820.8,1.63441]
[1739805960530,0.70889,2820.9,2820.8,0.9255]
[1739805960729,0.70889,2820.9,2820.8,1.63441]
[1739805961326,0.70889,2820.9,2820.8,0.9255]
[1739805961528,0.70889,2820.9,2820.8,1.63441]
[1739805962227,0.70889,2820.9,2820.8,0.9255]
[1739805962435,0.70889,2820.9,2820.8,1.63439]
[1739805962726,1.313,2821.3,2821.2,0.70881]
[1739805962927,1.313,2821.3,2821.1,0.70883]
[1739805962928,0.70883,2821.2,2821.1,0.70883]
[1739805963230,0.9578,2821.3,2820.9,2.72062]
[1739805963432,0.9578,2821.3,2820.8,0.9255]
[1739805963628,4.1656,2821.3,2821.0,0.70885]
[1739805963828,0.70884,2821.1,2821.0,0.70885]
[1739805964130,4.1656,2821.3,2821.0,0.70885]
[1739805964131,0.9578,2821.3,2821.2,0.70881]
[1739805964623,1.66659,2821.3,2821.2,0.70881]
[1739805964833,0.9578,2821.3,2821.0,4.1289]
[1739805965021,0.3552,2821.6,2821.0,4.1289]
[1739805965221,1.3427,2821.6,2821.4,0.70875]
[1739805965423,0.70874,2821.5,2821.4,0.70875]
[1739805965622,1.3427,2821.6,2821.2,0.00532226]
[1739805965832,1.3427,2821.6,2821.3,0.70877]
[1739805966032,0.70876,2821.4,2821.3,0.70877]
[1739805966229,3.2629252,2821.4,2821.2,0.00532226]
[1739805966535,0.70879,2821.3,2821.2,0.00532226]
[1739805966726,4.52149,2821.3,2821.2,0.00532226]
[1739805967028,5.48309,2821.3,2821.2,0.00532226]
[1739805967327,5.48309,2821.3,2820.5,3.9007]
[1739805967328,0.70896,2820.6,2820.5,3.9007]
[1739805967529,0.70901,2820.4,2820.3,1.0003]
[1739805967730,0.70899,2820.5,2820.4,0.709]
[1739805967928,0.70901,2820.4,2820.3,1.0003]
[1739805968338,3.9719252,2820.5,2820.3,1.70933]
[1739805968540,0.00532226,2820.6,2820.3,1.70933]
[1739805968739,0.70901,2820.4,2820.3,1.70933]
[1739805969144,0.00532226,2820.6,2820.4,0.70899]
[1739805969440,0.00532226,2820.6,2820.4,0.709]
[1739805969642,0.70899,2820.5,2820.4,0.709]
[1739805969837,0.00532226,2820.6,2820.3,1.0003]
[1739805970040,0.00532226,2820.6,2820.5,0.70899]
[1739805970743,0.71430226,2820.6,2820.4,0.709]
[1739805971547,0.00532226,2820.6,2820.3,1.0003]
[1739805971744,0.709,2820.5,2820.3,1.70932]
[1739805971948,0.00532226,2820.6,2820.3,1.70932]
[1739805972148,0.70901,2820.4,2820.3,1.70932]
[1739805973049,0.70901,2820.4,2820.3,1.0003]
[1739805973452,1.7056,2820.5,2820.3,1.0003]
[1739805973646,1.7056,2820.5,2820.4,0.70901]
[1739805973851,0.9966,2820.5,2820.3,1.0003]
[1739805974051,0.9966,2820.5,2820.3,1.70932]
[1739805974052,0.70901,2820.4,2820.3,1.70932]
[1739805974548,0.00532226,2820.6,2820.5,0.70899]
[1739805975750,0.00532226,2820.6,2820.3,3.8413]
[1739805975751,0.71429226,2820.6,2820.3,3.8413]
[1739805976053,0.00532226,2820.6,2820.5,0.70899]
[1739805976947,0.71428226,2820.6,2820.5,0.70899]
[1739805977542,0.709,2820.5,2820.4,0.709]
[1739805977749,0.00532226,2820.6,2820.3,1.70932]
[1739805978046,0.70899,2820.5,2820.4,0.70901]
[1739805978444,0.00532226,2820.6,2820.3,1.0003]
[1739805978753,0.00532226,2820.6,2820.5,0.70899]
[1739805978958,0.71428226,2820.6,2820.5,0.70899]
[1739805979142,0.00532226,2820.6,2820.5,0.70899]
[1739805979346,3.2078,2821.0,2820.5,3.91679]
[1739805979560,3.2078,2821.0,2820.9,0.70889]
[1739805979751,3.2629252,2821.3,2820.6,3.67662]
[1739805979960,0.70885,2821.1,2821.0,0.70886]
[1739805980156,3.2629252,2821.3,2820.6,3.67662]
[1739805980455,0.70877,2821.4,2820.9,1.7722]
[1739805980648,9.5130752,2821.6,2820.8,3.2078]
[1739805980850,7.7412252,2821.6,2820.8,3.2078]
[1739805981044,7.7412252,2821.6,2820.8,4.98005]
[1739805981359,0.70883,2821.2,2820.8,3.2078]
[1739805981549,9.5130552,2821.6,2820.8,3.2078]
[1739805981550,6.4707252,2821.3,2820.8,3.2078]
[1739805981757,6.4707252,2821.3,2820.8,3.9167]
[1739805981954,0.70888,2821.0,2820.8,3.9167]
[1739805982154,6.4707252,2821.3,2820.8,3.2078]
[1739805982352,4.4783,2821.6,2821.1,3.2078]
[1739805982559,4.4783,2821.6,2821.2,0.996]
[1739805982755,0.70876,2821.5,2821.3,0.70878]
[1739805982958,0.70876,2821.5,2821.4,0.9345]
[1739805983258,3.2078,2821.6,2821.4,0.9345]
[1739805983758,3.2078,2821.6,2821.4,1.64324]
[1739805984152,3.2078,2821.6,2821.4,0.9345]
[1739805984352,3.2078,2821.6,2821.5,0.70874]
[1739805984764,3.2078,2821.6,2821.4,0.9345]
[1739805984765,0.70874,2821.5,2821.4,0.9345]
[1739805985052,3.91653,2821.6,2821.4,1.64326]
[1739805985255,3.2078,2821.6,2821.4,0.9345]
[1739805985462,3.91651,2821.6,2821.5,0.70874]
[1739805985953,0.1,2822.0,2821.5,0.70874]
[1739805986159,0.9662,2822.5,2822.3,0.70852]
[1739805986755,0.3552,2822.7,2822.4,0.7085]
[1739805987258,0.3552,2822.7,2822.1,3.21312226]
[1739805987449,0.70846,2822.6,2822.3,0.70852]
[1739805987654,0.70846,2822.6,2822.3,0.70851]
[1739805987953,0.70848,2822.6,2822.3,0.70853]
[1739805988149,1.06365,2822.7,2822.4,0.70851]
[1739805988450,3.2629252,2822.9,2822.1,3.21312226]
[1739805988650,3.2629252,2822.6,2822.1,3.21312226]
[1739805988847,3.2629252,2822.3,2822.1,0.00532226]
[1739805989054,0.70856,2822.2,2822.1,0.00532226]
[1739805989355,1.70786,2822.2,2822.1,0.00532226]
[1739805989664,0.70856,2822.2,2822.1,0.00532226]
[1739805990049,0.9576,2822.7,2822.1,0.00532226]
[1739805990050,3.2078,2822.7,2822.1,0.00532226]
[1739805990254,0.70838,2823.0,2822.6,0.70845]
[1739805990458,4.2622252,2823.3,2822.7,0.9356]
[1739805990651,0.7084,2822.9,2822.7,0.9356]
[1739805991060,0.7084,2822.9,2822.7,1.64404]
[1739805991255,0.70837,2823.0,2822.8,0.70841]
[1739805991665,4.6166252,2823.3,2822.7,0.9356]
[1739805991967,0.70839,2822.9,2822.7,1.64403]
[1739805992154,4.6166252,2823.3,2822.7,0.9356]
[1739805992353,0.70841,2822.8,2822.7,0.9356]
[1739805992754,0.70838,2823.0,2822.7,1.64402]
[1739805992957,3.2078,2823.1,2822.7,0.9356]
[1739805993152,0.70838,2823.0,2822.7,0.9356]
[1739805993358,3.2078,2823.1,2822.7,0.9356]
[1739805993558,3.2078,2823.1,2822.8,0.9143]
[1739805993959,0.70837,2823.0,2822.8,0.9143]
[1739805994166,3.2078,2823.1,2822.8,0.9143]
[1739805994358,3.2078,2823.1,2822.8,1.6227]
[1739805994359,3.91615,2823.1,2822.8,1.6227]
[1739805994553,3.2078,2823.1,2822.9,0.70838]
[1739805994759,3.91614,2823.1,2822.8,2.58709]
[1739805995555,0.70837,2823.0,2822.8,2.58709]
[1739805995853,0.70839,2822.9,2822.8,0.9143]
[1739805997267,3.2078,2823.1,2822.8,1.62269]
[1739805997560,0.70839,2822.9,2822.8,0.9143]
[1739806000566,0.70839,2822.9,2822.8,1.62271]
[1739806001268,0.70839,2822.9,2822.8,0.9143]
[1739806003372,3.2078,2823.1,2822.7,0.9356]
[1739806003666,0.70841,2822.8,2822.7,0.9356]
[1739806003868,0.70841,2822.8,2822.7,1.64404]
[1739806004069,3.2629252,2823.0,2822.7,0.9356]
[1739806004269,3.2078,2823.1,2822.7,0.9356]
[1739806004463,3.2078,2823.1,2822.9,0.70837]
[1739806004669,0.70836,2823.0,2822.9,0.70837]
[1739806004868,3.2078,2823.1,2822.7,0.9356]
[1739806005067,0.7084,2822.9,2822.8,0.7084]
[1739806005266,0.7084,2822.9,2822.8,0.70841]
[1739806005466,0.70841,2822.8,2822.7,1.644]
[1739806005666,0.70841,2822.9,2822.8,0.7084]
[1739806005968,0.70841,2822.8,2822.7,1.64402]
[1739806006274,0.70841,2822.9,2822.8,0.70839]
[1739806006664,3.2078,2823.1,2822.7,0.9356]
[1739806006859,0.70841,2822.8,2822.7,1.64401]
[1739806007065,0.70841,2822.8,2822.7,0.9356]
[1739806007676,0.70841,2822.8,2822.6,3.2078]
[1739806007677,0.70844,2822.7,2822.6,0.70845]
[1739806007976,0.70846,2822.7,2822.5,1.65598]
[1739806008169,5.0338452,2823.0,2822.5,0.9475]
[1739806008364,3.2629252,2823.0,2822.5,0.9475]
[1739806008569,0.70846,2822.6,2822.5,1.65597]
[1739806008866,0.70846,2822.6,2822.5,1.65599]
[1739806009481,0.70846,2822.6,2822.5,0.9475]
[1739806009869,0.70846,2822.6,2822.1,0.00532226]
[1739806009870,0.70856,2822.2,2822.1,0.00532226]
[1739806010777,3.2629252,2822.4,2822.1,0.00532226]
[1739806010969,3.2629252,2822.4,2822.1,0.71391226]
[1739806011163,0.70855,2822.3,2822.2,0.70855]
[1739806011765,0.70855,2822.3,2822.2,0.70856]
[1739806012071,0.70853,2822.4,2822.2,0.70856]
[1739806012572,5.0340452,2822.7,2822.2,0.70856]
[1739806012769,0.70854,2822.4,2822.2,0.70856]
[1739806012970,5.0340452,2822.7,2822.1,0.00532226]
[1739806012971,3.2629252,2822.7,2822.1,0.00532226]
[1739806013175,0.9501,2822.8,2822.2,3.2078]
[1739806013370,0.9501,2822.8,2822.3,0.9266]
[1739806013975,0.70847,2822.6,2822.5,0.70846]
[1739806014375,0.9501,2822.8,2822.3,0.9266]
[1739806014771,0.70844,2822.7,2822.6,0.70845]
[1739806014979,0.9501,2822.8,2822.6,0.70845]
[1739806015169,0.9501,2822.8,2822.7,0.70844]
[1739806015370,1.65853,2822.8,2822.6,0.70845]
[1739806015573,0.9501,2822.8,2822.3,0.9266]
[1739806015776,0.9501,2822.8,2822.7,0.70844]
[1739806016478,1.65851,2822.8,2822.7,0.70844]
[1739806016679,0.70844,2822.7,2822.6,1.62165]
[1739806017183,0.70844,2822.7,2822.6,0.9132]
[1739806017569,5.0340452,2822.7,2822.2,0.70855]
[1739806017877,5.0340452,2822.7,2822.2,0.9132]
[1739806017878,0.70854,2822.3,2822.2,0.9132]
[1739806018870,0.9619,2822.6,2822.2,0.9132]
[1739806019075,0.70847,2822.6,2822.2,0.9132]
[1739806019279,0.70847,2822.6,2822.5,0.70849]
[1739806019576,6.4707252,2822.7,2822.3,0.70852]
[1739806019777,6.4707252,2822.7,2822.1,0.00532226]
[1739806020179,6.4707252,2822.7,2822.4,0.7085]
[1739806020381,0.70988375,2822.6,2822.4,0.7085]
[1739806020581,0.70849,2822.5,2822.3,0.70853]
[1739806020773,0.70849,2822.5,2822.2,0.9191]
[1739806020774,0.00140375,2822.6,2822.4,0.70849]
[1739806021079,0.70854,2822.3,2822.1,0.00532226]
[1739806021278,0.70856,2822.2,2822.1,0.00532226]
[1739806021583,0.70854,2822.3,2822.2,0.70854]
[1739806021782,0.70849,2822.5,2822.3,0.70852]
[1739806021980,0.00140375,2822.6,2822.5,0.70849]
[1739806022283,0.00140375,2822.6,2822.4,1.69569]
[1739806022475,0.70849,2822.5,2822.4,1.69569]
[1739806022674,0.00140375,2822.6,2822.4,0.9872]
[1739806022877,0.00140375,2822.6,2822.5,0.70849]
[1739806023569,0.00140375,2822.6,2822.5,1.63419]
[1739806024475,0.00140375,2822.6,2822.5,4.84199]
[1739806025274,0.00140375,2822.6,2822.5,1.63419]
[1739806026180,0.70986375,2822.6,2822.5,0.9257]
[1739806026378,0.00140375,2822.6,2822.4,3.8142]
[1739806026578,0.70988375,2822.6,2822.5,0.70849]
[1739806026771,0.00140375,2822.6,2822.5,0.70849]
[1739806027777,0.00140375,2822.6,2822.5,3.91629]
[1739806032588,0.9579,2823.1,2823.0,0.70836]
[1739806033181,0.9579,2823.1,2823.0,1.64486]
[1739806033981,0.9579,2823.1,2822.4,3.2629252]
[1739806033982,0.9579,2823.1,2822.6,3.2078]